bitfinex/quotes_ETHUSD_20240729
["timestamp","ask_amount","ask_price","bid_price","bid_amount"]
[1722247093134,2.38082014,3402.5,3402.0,7.45]
[1722247093135,2.35122,3402.5,3402.0,7.45]
[1722247093295,2.35118,3402.6,3402.1,0.05878195]
[1722247093825,0.70638574,3402.6,3402.0,7.45]
[1722247094030,2.35146,3402.2,3402.0,7.45]
[1722247094227,2.35135,3402.4,3402.0,7.45]
[1722247094429,3.05754574,3402.6,3402.0,7.45]
[1722247094629,3.05754574,3402.6,3402.1,0.05878129]
[1722247094933,5.35101,3402.8,3402.1,0.05878129]
[1722247094934,2.35101,3402.8,3402.1,0.05878129]
[1722247095432,2.35108,3402.7,3402.0,7.45]
[1722247095598,2.35114,3402.6,3402.0,7.45]
[1722247095792,2.35135,3402.3,3402.0,7.45]
[1722247096019,2.35135,3402.3,3401.8,19.65]
[1722247096346,2.35114,3402.6,3401.8,19.65]
[1722247096498,2.35128,3402.4,3401.8,19.65]
[1722247096693,2.43698014,3402.9,3401.8,19.65]
[1722247096694,2.35121,3402.5,3401.8,19.65]
[1722247097643,2.35141,3402.2,3401.8,19.65]
[1722247098029,2.35128,3402.4,3401.8,19.65]
[1722247098269,2.35116,3402.6,3401.8,22.00167]
[1722247098624,2.35122,3402.5,3401.8,19.65]
[1722247099245,2.35103,3402.8,3402.0,2.35155]
[1722247099446,2.35108,3402.7,3402.1,0.05877534]
[1722247099951,2.35101,3402.8,3402.1,0.05877534]
[1722247101061,2.35108,3402.7,3401.8,22.00163]
[1722247101266,2.35128,3402.4,3401.8,19.65]
[1722247101968,2.35128,3402.4,3401.6,2.35181]
[1722247102151,2.35128,3402.4,3401.6,5.35181]
[1722247102477,2.35128,3402.4,3401.6,3.0]
[1722247103176,2.35161,3402.0,3401.5,7.45]
[1722247103730,2.35142,3402.2,3401.5,7.45]
[1722247104440,2.35162,3401.9,3401.5,7.45]
[1722247104762,0.02958014,3402.5,3401.5,7.45]
[1722247104763,2.35169,3401.8,3401.5,7.45]
[1722247105161,2.35173,3401.8,3401.5,7.45]
[1722247105461,0.24369801,3402.7,3401.5,7.45]
[1722247105462,2.35183,3401.6,3401.5,7.45]
[1722247105775,2.35183,3401.6,3401.3,19.65]
[1722247105776,2.35191,3401.5,3401.3,19.65]
[1722247106128,2.35197,3401.4,3401.3,19.65]
[1722247106383,2.35179,3401.7,3401.3,19.65]
[1722247106729,2.35163,3401.9,3401.3,19.65]
[1722247106976,2.35163,3401.9,3401.4,0.05879087]
[1722247107568,2.35169,3401.8,3401.3,19.65]
[1722247108925,2.35176,3401.7,3401.3,19.65]
[1722247109123,2.35183,3401.6,3401.3,19.65]
[1722247109368,0.74177901,3402.2,3401.3,19.65]
[1722247109369,2.35195,3401.5,3401.3,19.65]
[1722247109565,2.35181,3401.7,3401.3,19.65]
[1722247109767,2.35185,3401.6,3401.3,19.65]
[1722247110977,2.35185,3401.6,3401.0,19.65]
[1722247111583,2.35191,3401.5,3401.0,19.65]
[1722247112684,2.35198,3401.4,3401.0,19.65]
[1722247113759,2.35188,3401.6,3401.0,19.65]
[1722247113946,2.35159,3402.0,3401.0,19.65]
[1722247114121,2.35194,3401.5,3401.0,19.65]
[1722247114327,2.35197,3401.4,3401.0,19.65]
[1722247114763,2.35189,3401.6,3401.0,19.65]
[1722247116869,2.35169,3401.8,3400.9,7.45]
[1722247117028,2.35169,3401.8,3401.0,2.35224]
[1722247117943,2.35169,3401.8,3400.9,7.45]
[1722247118329,2.35186,3401.6,3400.9,9.80231]
[1722247119366,2.35193,3401.5,3400.9,7.45]
[1722247119532,2.35186,3401.6,3400.9,7.45]
[1722247119533,2.35198,3401.4,3400.9,7.45]
[1722247119732,2.35204,3401.3,3400.9,7.45]
[1722247120365,2.35204,3401.3,3400.7,19.65]
[1722247120571,2.35204,3401.3,3400.5,5.35258]
[1722247123148,2.35211,3401.2,3400.5,3.0]
[1722247124159,2.35211,3401.2,3400.5,5.35258]
[1722247124699,2.35211,3401.2,3400.5,3.0]
[1722247125255,2.35211,3401.2,3400.4,31.78166]
[1722247125664,2.35218,3401.1,3400.4,7.45]
[1722247126184,2.35211,3401.2,3400.4,7.45]
[1722247126185,2.35226,3401.0,3400.4,7.45]
[1722247126688,2.35211,3401.2,3400.4,9.80265]
[1722247126844,2.35205,3401.3,3400.5,0.05880394]
[1722247127043,2.35205,3401.3,3400.4,9.80265]
[1722247127943,2.35205,3401.3,3400.5,0.05880604]
[1722247128848,2.3206,3401.1,3400.4,7.45]
[1722247129043,2.3968,3401.5,3400.6,2.35249]
[1722247129386,2.35197,3401.4,3400.7,0.05880293]
[1722247130036,2.3968,3401.5,3400.7,0.05880293]
[1722247130242,2.3715,3401.9,3400.8,0.05879775]
[1722247130450,2.35139,3402.3,3401.5,2.3519]
[1722247130675,2.3715,3402.4,3401.6,2.41059197]
[1722247131076,2.3715,3402.4,3401.4,2.35196]
[1722247131237,2.35146,3402.2,3401.3,9.80197]
[1722247132085,2.35146,3402.2,3401.4,2.35197]
[1722247132283,5.31903659,3402.4,3401.5,2.3519]
[1722247132446,2.35135,3402.3,3401.5,2.3519]
[1722247133384,2.3715,3402.4,3401.6,2.41057615]
[1722247133554,2.65887396,3402.8,3401.9,2.35162]
[1722247133555,2.74476396,3402.8,3401.9,2.35162]
[1722247133746,3.31065136,3402.8,3402.0,0.05877711]
[1722247133958,3.31065136,3402.8,3402.1,2.35144]
[1722247133959,3.0027874,3402.8,3402.1,2.35144]
[1722247134163,3.0027874,3402.8,3402.2,2.35141]
[1722247135260,0.02958014,3402.9,3402.3,0.0587765]
[1722247135574,2.4876,3403.2,3402.5,2.35116]
[1722247135784,2.4876,3403.2,3402.6,0.05876678]
[1722247136405,3.1978995,3403.7,3402.6,0.05876678]
[1722247136406,3.16831936,3403.7,3402.6,0.05876678]
[1722247137280,3.16831936,3403.7,3403.0,2.35085]
[1722247138102,3.16831936,3403.7,3403.2,2.35066]
[1722247138306,3.16831936,3403.7,3403.3,0.05876039]
[1722247138813,3.16831936,3403.7,3403.0,2.35085]
[1722247139018,3.16831936,3403.7,3402.9,7.45]
[1722247139323,3.16831936,3403.7,3402.9,9.80091]
[1722247139625,3.16831936,3403.7,3403.0,2.35085]
[1722247139774,3.16831936,3403.7,3403.0,2.40961943]
[1722247140306,3.16831936,3403.7,3403.2,2.35067]
[1722247140467,3.16831936,3403.7,3403.3,0.05875944]
[1722247140805,3.16831936,3403.7,3403.3,2.40939944]
[1722247143385,3.16831936,3403.7,3403.3,0.05875944]
[1722247143585,3.16831936,3403.7,3401.9,7.59795958]
[1722247143586,2.35181,3401.7,3400.6,2.35247]
[1722247143817,2.35181,3401.7,3400.1,11.02441699]
[1722247143818,2.35192,3401.5,3400.1,2.35285]
[1722247144016,0.07349903,3401.6,3400.6,2.35247]
[1722247144587,0.07349903,3401.6,3400.0,12.4209]
[1722247144782,0.07349903,3401.6,3400.6,2.35252]
[1722247145020,2.4488,3401.8,3400.7,2.35244]
[1722247145021,2.42526895,3401.7,3400.7,2.35244]
[1722247145239,0.07349895,3401.7,3400.7,2.35244]
[1722247145783,2.4488,3401.8,3400.8,2.35237]
[1722247146032,2.4488,3401.8,3400.6,2.35251]
[1722247146033,4.80051,3401.8,3400.6,2.35251]
[1722247146325,4.80051,3401.8,3400.7,2.35244]
[1722247146326,2.35177,3401.7,3400.7,2.35244]
[1722247147529,2.35177,3401.7,3400.5,2.35258]
[1722247147530,2.35177,3401.7,3400.8,2.35238]
[1722247147687,2.4488,3401.8,3400.8,2.35238]
[1722247147886,2.4488,3401.8,3400.9,2.35231]
[1722247147887,4.80049,3401.8,3400.9,2.35231]
[1722247148335,4.80049,3401.8,3400.6,2.35252]
[1722247148638,2.4488,3401.8,3400.6,2.35252]
[1722247148839,2.4488,3401.8,3400.9,2.3523]
[1722247149602,4.8005,3401.8,3400.9,2.3523]
[1722247150105,4.8005,3401.8,3400.8,2.35237]
[1722247150106,2.35177,3401.7,3400.8,2.35237]
[1722247151151,2.4488,3401.8,3400.8,2.35237]
[1722247151362,4.80049,3401.8,3400.8,2.35237]
[1722247151846,4.80049,3401.8,3400.6,7.45]
[1722247151847,3.54622429,3401.7,3400.6,7.45]
[1722247152146,3.54622429,3401.7,3400.7,0.0588032]
[1722247152147,2.35184,3401.6,3400.7,0.0588032]
[1722247152444,0.07350401,3401.5,3400.6,7.45]
[1722247153636,2.42544401,3401.5,3400.6,7.45]
[1722247153801,2.35155,3402.0,3400.7,2.35244]
[1722247154004,2.35155,3402.0,3400.8,2.35234]
[1722247154005,2.35174,3401.8,3400.8,2.35234]
[1722247155004,2.35174,3401.8,3400.6,7.45]
[1722247155005,2.35191,3401.5,3400.6,9.80252]
[1722247155226,2.42534086,3401.6,3400.7,2.35245]
[1722247156220,0.07349796,3401.5,3400.6,7.45]
[1722247156422,2.35209,3401.3,3400.6,7.45]
[1722247156644,2.42539796,3401.5,3400.6,7.45]
[1722247157350,2.3519,3401.5,3400.6,7.45]
[1722247158609,0.07350058,3401.4,3400.6,7.45]
[1722247159237,0.0735006,3401.6,3400.6,7.45]
[1722247159456,0.0735006,3401.6,3400.7,2.35238]
[1722247159750,2.4253406,3401.6,3400.7,2.35238]
[1722247160335,2.3634,3401.7,3400.9,2.3523]
[1722247160336,0.0735006,3401.7,3400.9,2.3523]
[1722247160657,2.3515,3402.1,3401.0,2.35223]
[1722247160839,2.35167,3401.9,3401.0,2.35223]
[1722247164530,0.07349309,3402.0,3401.1,2.35213]
[1722247164729,0.07349309,3402.0,3401.2,0.05879458]
[1722247165343,2.42506309,3402.0,3401.2,0.05879458]
[1722247165542,0.07349309,3402.0,3401.2,0.05879458]
[1722247165760,2.42505309,3402.0,3401.2,0.05879458]
[1722247166753,3.1522414,3402.0,3401.1,2.35217]
[1722247167481,0.8006814,3402.0,3400.6,9.80247]
[1722247167641,2.546,3401.8,3400.6,7.45]
[1722247167842,0.07350236,3401.7,3400.8,2.35234]
[1722247168032,0.07350236,3401.7,3400.7,5.3524]
[1722247168033,2.42526236,3401.7,3400.7,5.3524]
[1722247168775,2.42526236,3401.7,3400.8,2.35238]
[1722247169474,0.07350242,3401.8,3400.9,2.43]
[1722247169676,2.35162,3401.9,3401.0,2.35224]
[1722247169891,0.07349769,3401.8,3400.8,2.35238]
[1722247170041,0.07349769,3401.8,3400.9,2.35231]
[1722247170593,0.0734977,3401.8,3401.0,2.3522]
[1722247170888,2.35156,3402.0,3401.1,2.35217]
[1722247171816,2.35148,3402.1,3401.1,2.35217]
[1722247171956,0.07349364,3402.0,3401.1,2.35217]
[1722247172701,0.07349364,3402.0,3401.3,2.35199]
[1722247173210,0.07349364,3402.0,3401.1,2.35212]
[1722247173573,2.42505364,3402.0,3401.1,2.35212]
[1722247173774,2.42505364,3402.0,3401.0,7.45]
[1722247173996,3.22731448,3402.0,3401.0,7.45]
[1722247174626,0.87575448,3402.0,3401.1,2.35217]
[1722247174906,0.07349364,3402.0,3401.1,2.35217]
[1722247176065,0.07349364,3402.0,3401.0,7.45]
[1722247176272,0.07349364,3402.0,3401.3,2.35198]
[1722247176708,2.3514,3402.3,3401.3,2.35198]
[1722247176709,2.35082,3403.1,3401.4,0.05879486]
[1722247176917,2.2944,3403.4,3402.3,2.3513]
[1722247176918,0.30786811,3402.9,3402.3,2.3513]
[1722247177118,0.30786811,3402.9,3401.6,9.996]
[1722247177119,0.55709917,3403.3,3402.4,2.41004632]
[1722247177279,2.2944,3403.4,3402.0,7.45]
[1722247177280,0.07346697,3403.2,3402.3,2.35132]
[1722247177801,0.07346697,3403.2,3402.4,2.41004359]
[1722247177991,2.2944,3403.4,3402.4,0.05877359]
[1722247178291,0.30783064,3403.6,3402.4,0.05877359]
[1722247178292,0.38129135,3403.6,3402.9,2.35088]
[1722247178458,0.07346071,3403.6,3402.7,2.35104]
[1722247178665,0.65807191,3403.6,3402.7,2.35104]
[1722247179322,0.65807191,3403.6,3402.7,2.33104]
[1722247181300,0.65807191,3403.6,3402.6,7.45]
[1722247181301,2.35053,3403.5,3402.6,7.45]
[1722247181496,0.07345874,3403.4,3402.6,7.45]
[1722247181677,2.35053,3403.5,3402.6,9.80113]
[1722247181678,0.07345874,3403.5,3402.6,9.80113]
[1722247182517,0.07345874,3403.5,3402.6,7.45]
[1722247183483,2.42403874,3403.5,3402.6,7.45]
[1722247183705,3.30214986,3403.5,3402.6,7.45]
[1722247184019,0.07345874,3403.5,3402.6,7.45]
[1722247184197,0.07345874,3403.5,3402.8,2.35098]
[1722247184396,0.07346417,3403.6,3402.8,2.35098]
[1722247185729,0.07346417,3403.6,3402.9,0.05877133]
[1722247186297,3.16831936,3403.7,3402.9,0.05877133]
[1722247186525,3.16831936,3403.7,3403.0,2.35082]
[1722247187440,3.24177362,3403.7,3403.2,2.35071]
[1722247188217,3.16831936,3403.7,3403.2,2.35071]
[1722247188796,3.16831936,3403.7,3403.3,2.35063]
[1722247190399,3.16831936,3403.7,3402.9,2.3509]
[1722247190723,3.16831936,3403.7,3403.1,2.35078]
[1722247192339,5.47721936,3403.7,3403.1,2.35078]
[1722247193235,0.07345107,3403.6,3402.9,2.3509]
[1722247193636,0.07345107,3403.6,3403.0,2.35086]
[1722247193949,0.07345107,3403.6,3402.8,5.35099]
[1722247193950,0.07345107,3403.6,3402.9,2.35093]
[1722247194236,0.07345107,3403.6,3403.0,2.35085]
[1722247195049,0.07345107,3403.6,3403.1,2.35078]
[1722247195213,5.47721936,3403.7,3403.1,2.35078]
[1722247195419,0.07345869,3403.6,3403.1,2.35078]
[1722247195829,3.16831936,3403.7,3403.1,2.35078]
[1722247196637,0.07345165,3403.6,3403.0,2.35085]
[1722247197422,3.16831936,3403.7,3403.1,2.40949407]
[1722247197724,3.16831936,3403.7,3402.9,2.35091]
[1722247197966,0.07345469,3403.6,3403.0,2.35085]
[1722247198279,0.07345469,3403.6,3402.8,2.351]
[1722247198966,0.07345469,3403.6,3403.0,2.35085]
[1722247200244,0.05882469,3403.6,3402.9,2.35092]
[1722247200565,0.05882469,3403.6,3402.7,3.0]
[1722247200566,0.05882469,3403.6,3402.8,2.35099]
[1722247200980,0.05882469,3403.6,3402.7,2.35107]
[1722247200981,2.4766,3403.5,3402.7,2.35107]
[1722247201147,0.05883468,3403.4,3402.9,2.3509]
[1722247201343,0.05883468,3403.4,3402.7,2.35107]
[1722247201589,0.05883468,3403.4,3402.8,2.351]
[1722247201800,0.05883468,3403.4,3402.7,2.35107]
[1722247201801,0.05883468,3403.4,3402.7,2.35106]
[1722247201982,0.74575834,3403.4,3402.7,2.35106]
[1722247202350,0.74575834,3403.4,3402.6,7.45]
[1722247202351,2.4887,3403.2,3402.6,7.45]
[1722247202683,2.95964434,3403.1,3402.6,7.45]
[1722247202883,0.60884434,3403.1,3402.6,7.45]
[1722247203766,2.95964434,3403.1,3402.6,7.45]
[1722247203974,0.77990943,3403.0,3402.4,19.65]
[1722247204282,0.60884835,3402.9,3402.4,19.65]
[1722247204489,0.60884835,3402.9,3402.0,2.35155]
[1722247204698,2.3731,3402.7,3401.9,7.45]
[1722247204856,0.59215235,3402.6,3401.9,7.45]
[1722247205201,0.05885451,3402.6,3401.9,7.45]
[1722247205562,0.55,3402.5,3401.9,7.45]
[1722247205752,0.05885885,3402.4,3401.9,7.45]
[1722247206206,0.05885885,3402.4,3401.9,9.80162]
[1722247206555,0.07348579,3402.6,3401.9,7.45]
[1722247206915,3.0,3403.2,3402.2,2.3514]
[1722247206916,2.38,3403.1,3402.2,2.3514]
[1722247207061,1.323066,3403.0,3402.2,2.3514]
[1722247207414,0.07348257,3402.9,3402.4,2.35122]
[1722247207699,0.07348257,3402.9,3402.3,2.35134]
[1722247208011,0.07347521,3403.0,3402.6,2.35112]
[1722247208200,0.07347521,3403.0,3401.9,9.80157]
[1722247208201,0.07347521,3403.0,3402.7,2.35106]
[1722247208614,2.38,3403.1,3402.7,2.35106]
[1722247208775,0.07346679,3403.3,3403.1,11.52775408]
[1722247208972,2.4511,3403.5,3403.1,15.31690912]
[1722247209189,2.4511,3403.5,3403.1,16.93264919]
[1722247209405,0.07346413,3403.4,3403.1,16.93264919]
[1722247209630,3.16831936,3403.7,3403.1,19.28342919]
[1722247209793,3.16831936,3403.7,3403.2,2.35071]
[1722247209994,3.16831936,3403.7,3403.1,16.93264919]
[1722247209995,3.16831936,3403.7,3403.3,2.35064]
[1722247210310,0.07345767,3403.6,3403.3,2.35064]
[1722247210492,0.07345767,3403.6,3403.1,19.28342919]
[1722247210690,3.08969703,3403.7,3403.4,2.35058]
[1722247210874,3.08969703,3403.7,3403.5,2.3505]
[1722247211098,2.93761703,3403.7,3403.5,2.3505]
[1722247212199,2.93761703,3403.7,3403.6,2.35045]
[1722247213540,2.93761703,3403.7,3403.3,19.65]
[1722247216583,2.93761703,3403.7,3403.5,2.35051]
[1722247217900,2.93761703,3403.7,3403.6,2.35045]
[1722247218450,2.93761703,3403.7,3403.4,2.35054]
[1722247220111,2.93761703,3403.7,3403.5,2.35051]
[1722247224170,2.93761703,3403.7,3403.6,2.35045]
[1722247227393,2.93761703,3403.7,3403.4,2.35053]
[1722247227687,2.93761703,3403.7,3403.5,2.3505]
[1722247228652,2.93761703,3403.7,3403.6,2.35045]
[1722247230099,2.93761703,3403.7,3403.6,4.7009]
[1722247232579,2.93761703,3403.7,3403.6,2.35045]
[1722247233798,2.93761703,3403.7,3403.6,4.7009]
[1722247234375,2.93761703,3403.7,3403.6,2.35045]
[1722247239212,2.93761703,3403.7,3403.4,0.05875867]
[1722247239213,2.93761703,3403.7,3403.4,2.35054]
[1722247239933,2.93761703,3403.7,3403.3,19.65]
[1722247239934,3.46333873,3403.7,3403.3,19.65]
[1722247240692,3.46333873,3403.7,3403.1,16.93264919]
[1722247240887,2.2781,3403.6,3403.1,16.93264919]
[1722247241480,4.62857,3403.6,3403.1,16.93264919]
[1722247241679,1.04422987,3403.5,3403.1,16.93264919]
[1722247243883,2.35072,3403.2,3403.1,16.93264919]
[1722247244086,7.63334,3403.2,3403.1,16.93264919]
[1722247244587,2.9319,3403.2,3403.1,16.93264919]
[1722247244787,5.28262,3403.2,3403.1,16.93264919]
[1722247244987,6.15037099,3403.2,3403.1,16.93264919]
[1722247247437,2.3819,3403.2,3403.1,16.93264919]
[1722247250639,1.04422987,3403.5,3403.1,16.93264919]
[1722247251544,3.39474987,3403.5,3403.1,16.93264919]
[1722247252238,0.55,3403.4,3403.1,16.93264919]
[1722247255232,0.5787812,3403.4,3403.1,16.93264919]
[1722247255432,0.0287812,3403.4,3403.1,16.93264919]
[1722247256483,0.85822902,3403.4,3403.1,16.93264919]
[1722247259477,0.0287812,3403.4,3403.1,16.93264919]
[1722247260237,0.0287812,3403.4,3403.1,19.28342919]
[1722247260909,0.0287812,3403.4,3403.2,2.35072]
[1722247261062,0.0287812,3403.4,3403.1,16.93264919]
[1722247264553,0.0287812,3403.4,3403.1,19.28341919]
[1722247265887,0.0287812,3403.4,3403.2,2.35072]
[1722247267213,0.0287812,3403.4,3403.3,2.35065]
[1722247268054,0.0287812,3403.4,3403.2,2.35071]
[1722247268257,0.0287812,3403.4,3403.1,16.93264919]
[1722247268673,0.0287812,3403.4,3403.1,19.28338919]
[1722247268887,0.0287812,3403.4,3403.1,16.93264919]
[1722247269393,2.2947,3403.3,3403.1,16.93264919]
[1722247270192,0.23234812,3403.2,3403.1,16.93264919]
[1722247270603,0.78234812,3403.2,3403.1,16.93264919]
[1722247271153,0.81112932,3403.2,3403.1,16.93264919]
[1722247271959,3.16184932,3403.2,3403.1,16.93264919]
[1722247272162,3.16184932,3403.2,3403.1,15.93572742]
[1722247272163,12.81508932,3403.2,3403.1,15.93572742]
[1722247272390,12.81508932,3403.2,3403.1,11.57155695]
[1722247272391,15.81508932,3403.2,3403.1,11.57155695]
[1722247272593,15.81508932,3403.2,3403.1,7.85820505]
[1722247273160,15.81508932,3403.2,3403.1,6.10415264]
[1722247274073,17.58408932,3403.2,3403.1,6.10415264]
[1722247274475,17.58408932,3403.2,3403.1,5.83513559]
[1722247274476,19.93480932,3403.2,3403.1,5.83513559]
[1722247275680,22.48148219,3403.2,3403.1,5.83513559]
[1722247276016,17.38880932,3403.2,3403.1,5.83513559]
[1722247276869,17.38880932,3403.2,3403.1,2.08043559]
[1722247276870,20.44598466,3403.2,3403.1,2.08043559]
[1722247277113,20.44598466,3403.2,3403.1,5.59e-06]
[1722247277114,17.38880932,3403.2,3403.1,5.59e-06]
[1722247277296,4.78344,3401.8,3401.4,7.45]
[1722247277498,4.78344,3401.8,3400.6,12.2251]
[1722247277684,4.78344,3401.8,3400.7,2.35245]
[1722247277888,0.55,3401.7,3400.6,9.8726]
[1722247278071,2.35183,3401.6,3400.6,9.8726]
[1722247278413,0.55,3401.5,3400.6,7.45]
[1722247279178,2.9019,3401.5,3400.6,7.45]
[1722247281029,2.35197,3401.4,3400.6,7.45]
[1722247281532,0.55,3401.3,3400.6,7.45]
[1722247281894,0.55,3401.5,3400.6,7.45]
[1722247282750,0.0287812,3401.7,3400.8,2.426]
[1722247282908,0.0287812,3401.7,3401.6,2.35183]
[1722247283237,0.0287812,3401.7,3401.6,2.822202]
[1722247283533,0.0287812,3401.7,3401.6,0.470372]
[1722247283841,0.0287812,3401.7,3401.1,2.35213]
[1722247283995,0.0287812,3401.7,3401.1,5.35213]
[1722247284509,0.0287812,3401.7,3401.4,2.35196]
[1722247284703,0.0287812,3401.7,3401.6,2.35183]
[1722247285491,0.0287812,3401.7,3401.6,4.70366]
[1722247285698,0.0287812,3401.7,3401.6,7.609126]
[1722247286196,0.0287812,3401.7,3401.6,5.257296]
[1722247286593,0.0287812,3401.7,3401.6,2.905466]
[1722247286926,0.0287812,3401.7,3401.6,0.470366]
[1722247287313,0.0287812,3401.7,3401.2,7.72399]
[1722247287943,0.0287812,3401.7,3401.2,5.35209]
[1722247288144,0.0287812,3401.7,3401.2,2.35209]
[1722247288855,0.0287812,3401.7,3401.1,5.35215]
[1722247290242,0.0287812,3401.7,3401.0,9.80222]
[1722247290243,0.0287812,3401.7,3401.0,7.45]
[1722247290540,0.0287812,3401.7,3401.0,9.80219]
[1722247290699,0.0287812,3401.7,3401.2,2.3521]
[1722247291254,0.0287812,3401.7,3401.0,9.80219]
[1722247291398,0.0287812,3401.7,3401.1,2.35216]
[1722247291599,0.0287812,3401.7,3401.0,9.80219]
[1722247293065,0.0287812,3401.7,3401.1,2.35216]
[1722247293684,0.0287812,3401.7,3401.2,2.35209]
[1722247293843,0.0287812,3401.7,3401.3,2.35204]
[1722247294040,0.0287812,3401.7,3401.4,2.35197]
[1722247294423,0.0287812,3401.7,3401.2,2.35206]
[1722247296184,0.0287812,3401.7,3401.5,2.3519]
[1722247296527,0.0287812,3401.7,3401.6,2.35183]
[1722247296733,0.0287812,3401.7,3401.6,4.70366]
[1722247296928,0.0287812,3401.7,3401.6,2.35183]
[1722247297559,0.0287812,3401.7,3401.6,4.70366]
[1722247297730,0.0287812,3401.7,3401.6,2.35183]
[1722247297933,0.0287812,3401.7,3401.6,4.70366]
[1722247298830,0.0287812,3401.7,3401.6,2.35183]
[1722247299034,0.0287812,3401.7,3401.6,4.70366]
[1722247300947,0.0287812,3401.7,3401.6,2.35183]
[1722247301786,0.0287812,3401.7,3401.6,4.70366]
[1722247302293,0.0287812,3401.7,3401.6,2.35183]
[1722247304796,0.0287812,3401.7,3401.0,7.45]
[1722247305087,0.0287812,3401.7,3401.2,2.35206]
[1722247306095,0.0287812,3401.7,3401.0,9.80224]
[1722247306447,0.25914932,3401.7,3401.0,9.80224]
[1722247307287,0.25914932,3401.7,3401.1,2.35217]
[1722247307450,0.0287812,3401.7,3401.1,2.35217]
[1722247307651,0.0287812,3401.7,3401.3,2.35199]
[1722247307857,0.0287812,3401.7,3401.2,2.35211]
[1722247308163,0.0287812,3401.7,3401.4,2.35197]
[1722247308367,0.0287812,3401.7,3401.2,2.35211]
[1722247309092,0.0287812,3401.7,3401.0,9.80219]
[1722247309895,0.0287812,3401.7,3401.1,2.35217]
[1722247310252,0.0287812,3401.7,3401.0,7.45]
[1722247310797,0.0287812,3401.7,3401.0,9.8022]
[1722247311295,0.0287812,3401.7,3401.0,7.45]
[1722247312072,2.3544,3401.6,3401.0,7.45]
[1722247312268,2.59271812,3401.6,3401.0,7.45]
[1722247316163,2.59271812,3401.6,3400.7,7.45]
[1722247316498,2.59271812,3401.6,3400.7,9.80245]
[1722247316895,2.59271812,3401.6,3400.7,7.45]
[1722247317086,0.49732393,3401.5,3400.7,7.45]
[1722247317397,2.59271812,3401.6,3400.7,7.45]
[1722247318299,2.90194,3401.5,3400.7,7.45]
[1722247320101,2.3833,3401.3,3400.7,7.45]
[1722247321221,4.73534,3401.3,3400.7,7.45]
[1722247321373,0.528534,3401.2,3400.7,7.45]
[1722247321573,0.55,3401.1,3400.7,7.45]
[1722247322199,0.55,3401.1,3400.5,19.65]
[1722247325669,0.55,3401.1,3400.0,10.0]
[1722247325670,2.3001,3400.6,3400.0,10.0]
[1722247325899,0.23001,3400.5,3400.0,10.0]
[1722247326101,0.78001,3400.5,3400.0,10.0]
[1722247329279,2.355,3400.4,3400.0,10.0]
[1722247333299,2.355,3400.4,3400.0,5.0]
[1722247335104,2.4764,3400.4,3400.0,5.0]
[1722247335305,0.325641,3400.3,3400.0,5.0]
[1722247339835,0.23001,3400.5,3400.0,5.0]
[1722247353262,1.29201,3400.5,3400.0,5.0]
[1722247355204,3.6446,3400.5,3400.0,5.0]
[1722247355613,3.41487,3400.1,3400.0,5.0]
[1722247355763,11.16742277,3400.1,3400.0,5.0]
[1722247356110,7.8803286,3400.1,3400.0,5.0]
[1722247356276,13.2192286,3400.1,3400.0,5.0]
[1722247356606,15.37719183,3400.1,3400.0,5.0]
[1722247356804,13.2192286,3400.1,3400.0,5.0]
[1722247359176,16.86665754,3400.1,3400.0,5.0]
[1722247359381,14.7072286,3400.1,3400.0,5.0]
[1722247359970,16.86597382,3400.1,3400.0,5.0]
[1722247360171,14.7072286,3400.1,3400.0,5.0]
[1722247361084,16.86501829,3400.1,3400.0,5.0]
[1722247361285,14.7072286,3400.1,3400.0,5.0]
[1722247361712,16.86502348,3400.1,3400.0,5.0]
[1722247361904,14.7072286,3400.1,3400.0,5.0]
[1722247362089,16.86504189,3400.1,3400.0,5.0]
[1722247362719,14.7072286,3400.1,3400.0,5.0]
[1722247363119,16.86465453,3400.1,3400.0,5.0]
[1722247363319,14.7072286,3400.1,3400.0,5.0]
[1722247364035,16.86514162,3400.1,3400.0,5.0]
[1722247364210,12.3543586,3400.1,3400.0,5.0]
[1722247369457,2.66075907,3400.2,3400.0,5.0]
[1722247369458,0.30795907,3400.2,3400.0,5.0]
[1722247369614,3.11131422,3401.0,3400.0,5.0]
[1722247369615,1.85005572,3400.4,3400.0,5.0]
[1722247369813,2.1584766,3400.7,3400.0,5.0]
[1722247369814,2.35246,3400.7,3400.0,5.0]
[1722247370054,1.84969661,3400.7,3400.1,2.4609]
[1722247370353,2.75173346,3400.7,3400.1,2.4609]
[1722247371139,1.84969661,3400.7,3400.3,2.3527]
[1722247371339,1.84969661,3401.1,3400.2,2.35276]
[1722247371557,1.84969661,3401.2,3400.2,2.35276]
[1722247371862,1.84969661,3401.3,3400.3,2.35272]
[1722247372832,4.20173661,3401.3,3400.1,4.8137]
[1722247373032,4.20173661,3401.3,3400.2,2.35279]
[1722247373259,3.0,3401.2,3400.2,2.35279]
[1722247374519,5.35211,3401.2,3400.1,2.4609]
[1722247374718,7.20162424,3401.2,3400.1,2.4609]
[1722247375827,2.35218,3401.1,3400.1,2.4609]
[1722247376350,2.35253,3400.6,3400.0,5.0]
[1722247376558,2.35252,3400.6,3400.0,5.0]
[1722247376759,2.35259,3400.5,3400.0,5.0]
[1722247376947,1.84963063,3400.4,3400.0,5.0]
[1722247377145,5.35259,3400.5,3400.0,5.0]
[1722247377346,4.97271283,3400.5,3400.0,5.0]
[1722247377731,4.20228583,3400.4,3400.0,5.0]
[1722247378630,1.84962583,3400.3,3400.0,5.0]
[1722247378831,4.20238583,3400.3,3400.0,5.0]
[1722247379055,2.35287,3400.1,3400.0,5.0]
[1722247379253,4.20249583,3400.1,3400.0,5.0]
[1722247379548,2.90287,3400.1,3400.0,5.0]